[Event "*** Titled Tuesday Blitz"]
[Site "Chess.com"]
[Date "2021.02.16"]
[Round "9"]
[White "eldur16"]
[Black "AniJak"]
[Result "1-0"]
[WhiteElo "2487"]
[BlackElo "2316"]
[TimeControl "180+1"]
[EndTime "11:47:36 PST"]
[Termination "eldur16 won by resignation"]

1. c4 {[%clk 0:03:00.9]} 1... e5 {[%clk 0:02:57.5]} 2. g3 {[%clk 0:02:59.3]}
2... Nc6 {[%clk 0:02:57.5]} 3. Bg2 {[%clk 0:02:59.2]} 3... g6 {[%clk 0:02:57.9]}
4. Nc3 {[%clk 0:02:58.6]} 4... Bg7 {[%clk 0:02:58.3]} 5. e3 {[%clk 0:02:58.3]}
5... d6 {[%clk 0:02:58.7]} 6. Nge2 {[%clk 0:02:57.9]} 6... Nge7 {[%clk
0:02:56.3]} 7. O-O {[%clk 0:02:56.3]} 7... h5 {[%clk 0:02:55.3]} 8. d4 {[%clk
0:02:51.3]} 8... h4 {[%clk 0:02:54.1]} 9. d5 {[%clk 0:02:50.4]} 9... Nb8 {[%clk
0:02:46.4]} 10. e4 {[%clk 0:02:50.4]} 10... hxg3 {[%clk 0:02:44]} 11. fxg3
{[%clk 0:02:46.3]} 11... Bh3 {[%clk 0:02:41.9]} 12. Bxh3 {[%clk 0:02:40.8]}
12... Rxh3 {[%clk 0:02:40.9]} 13. Kg2 {[%clk 0:02:40.8]} 13... Qd7 {[%clk
0:02:36.7]} 14. Ng1 {[%clk 0:02:37.1]} 14... Rh8 {[%clk 0:02:36.2]} 15. Bg5
{[%clk 0:02:34.4]} 15... Na6 {[%clk 0:02:28.2]} 16. Qf3 {[%clk 0:02:31.6]} 16...
Rf8 {[%clk 0:02:19.4]} 17. Bf6 {[%clk 0:02:27.7]} 17... Bxf6 {[%clk 0:02:17.8]}
18. Qxf6 {[%clk 0:02:27.1]} 18... O-O-O {[%clk 0:02:10.1]} 19. Rf3 {[%clk
0:02:21.2]} 19... Ng8 {[%clk 0:02:09.2]} 20. Qg7 {[%clk 0:02:19.9]} 20... f5
{[%clk 0:01:46.6]} 21. Qxg6 {[%clk 0:02:18.1]} 21... fxe4 {[%clk 0:01:46.3]} 22.
Nxe4 {[%clk 0:02:16.2]} 22... Rxf3 {[%clk 0:01:45.4]} 23. Nxf3 {[%clk 0:02:16]}
23... Ne7 {[%clk 0:01:40.5]} 24. Qe6 {[%clk 0:02:06.5]} 24... Nf5 {[%clk
0:01:36.9]} 25. Qxd7+ {[%clk 0:02:01.9]} 25... Kxd7 {[%clk 0:01:36.6]} 26. Re1
{[%clk 0:02:01.1]} 26... Nb4 {[%clk 0:01:35]} 27. a3 {[%clk 0:01:46.5]} 27...
Nc2 {[%clk 0:01:33.6]} 28. Re2 {[%clk 0:01:45.3]} 28... Nce3+ {[%clk 0:01:33.2]}
29. Kf2 {[%clk 0:01:43.5]} 29... Nxc4 {[%clk 0:01:33.4]} 30. g4 {[%clk
0:01:41.7]} 30... Nd4 {[%clk 0:01:31.7]} 31. Nxd4 {[%clk 0:01:35.9]} 31... exd4
{[%clk 0:01:32.6]} 32. Nf6+ {[%clk 0:01:34.8]} 32... Kc8 {[%clk 0:01:30.7]} 33.
g5 {[%clk 0:01:34.2]} 33... Rf8 {[%clk 0:01:23.7]} 34. Re4 {[%clk 0:01:25.9]}
34... c5 {[%clk 0:00:47]} 35. dxc6 {[%clk 0:01:22.4]} 35... bxc6 {[%clk
0:00:47.9]} 36. Rxd4 {[%clk 0:01:21.2]} 36... d5 {[%clk 0:00:48.6]} 37. Rf4
{[%clk 0:01:13.7]} 37... Nxb2 {[%clk 0:00:46.1]} 38. Ke2 {[%clk 0:01:12.7]}
38... d4 {[%clk 0:00:40.2]} 39. g6 {[%clk 0:01:11.5]} 39... d3+ {[%clk 0:00:34]}
40. Kd2 {[%clk 0:01:11.2]} 40... Nc4+ {[%clk 0:00:30.2]} 41. Rxc4 {[%clk
0:01:06.5]} 41... Rxf6 {[%clk 0:00:30.3]} 42. Rg4 {[%clk 0:01:02.8]} 42... Rf8
{[%clk 0:00:30.4]} 43. g7 {[%clk 0:01:02.2]} 43... Rg8 {[%clk 0:00:30.9]} 44. h4
{[%clk 0:01:02.1]} 44... Kd7 {[%clk 0:00:31.8]} 45. h5 {[%clk 0:01:01.9]} 45...
Ke7 {[%clk 0:00:32.1]} 46. h6 {[%clk 0:01:01.9]} 46... Kf7 {[%clk 0:00:32.5]}
47. h7 {[%clk 0:00:57.5]} 47... Rxg7 {[%clk 0:00:32.8]} 48. Rf4+ {[%clk
0:00:57.4]} 48... Ke6 {[%clk 0:00:29.6]} 49. h8=Q {[%clk 0:00:57.4]} 49... Rg2+
{[%clk 0:00:29.1]} 50. Kxd3 {[%clk 0:00:56.6]} 50... Rg3+ {[%clk 0:00:30]} 1-0

[Event "*** Titled Tuesday Blitz"]
[Site "Chess.com"]
[Date "2021.02.16"]
[Round "9"]
[White "Chessbard1972"]
[Black "bylavochka"]
[Result "1-0"]
[WhiteElo "2347"]
[BlackElo "2100"]
[TimeControl "180+1"]
[EndTime "11:47:36 PST"]
[Termination "Chessbard1972 won by checkmate"]

1. d4 {[%clk 0:02:59.8]} 1... Nf6 {[%clk 0:02:59.6]} 2. Nf3 {[%clk 0:02:58.9]}
2... e6 {[%clk 0:02:57.9]} 3. c4 {[%clk 0:02:56.1]} 3... d5 {[%clk 0:02:57.8]}
4. Bg5 {[%clk 0:02:54.9]} 4... Be7 {[%clk 0:02:55.9]} 5. Nc3 {[%clk 0:02:52.8]}
5... Nbd7 {[%clk 0:02:53.2]} 6. e3 {[%clk 0:02:52.8]} 6... O-O {[%clk
0:02:52.3]} 7. cxd5 {[%clk 0:02:52.6]} 7... exd5 {[%clk 0:02:52.1]} 8. Qc2
{[%clk 0:02:52.3]} 8... b6 {[%clk 0:02:43.7]} 9. Bd3 {[%clk 0:02:46.3]} 9... Bb7
{[%clk 0:02:38.7]} 10. O-O {[%clk 0:02:46.3]} 10... Rc8 {[%clk 0:02:32.8]} 11.
Ne5 {[%clk 0:02:45.8]} 11... h6 {[%clk 0:02:19.9]} 12. Bh4 {[%clk 0:02:42]}
12... Nxe5 {[%clk 0:01:54.7]} 13. dxe5 {[%clk 0:02:39.9]} 13... Nd7 {[%clk
0:01:52.7]} 14. Bg3 {[%clk 0:02:38.8]} 14... c6 {[%clk 0:01:47.6]} 15. Bf5
{[%clk 0:02:31.4]} 15... Qe8 {[%clk 0:01:06.4]} 16. Qe2 {[%clk 0:02:24.7]} 16...
Bb4 {[%clk 0:00:54.6]} 17. Qg4 {[%clk 0:02:15.7]} 17... Rd8 {[%clk 0:00:50]} 18.
Qxb4 {[%clk 0:02:13.8]} 18... Nxe5 {[%clk 0:00:47.4]} 19. Qa4 {[%clk 0:02:05.7]}
19... a6 {[%clk 0:00:36.4]} 20. Qd4 {[%clk 0:02:04.4]} 20... Nc4 {[%clk
0:00:36.4]} 21. b3 {[%clk 0:01:55.9]} 21... c5 {[%clk 0:00:36.8]} 22. Qd1 {[%clk
0:01:52.4]} 22... Na5 {[%clk 0:00:26.5]} 23. Qg4 {[%clk 0:01:47.3]} 23... g6
{[%clk 0:00:22]} 24. Bc2 {[%clk 0:01:42.9]} 24... d4 {[%clk 0:00:22.2]} 25. exd4
{[%clk 0:01:34.1]} 25... cxd4 {[%clk 0:00:15.5]} 26. Rfe1 {[%clk 0:01:27.3]}
26... Qc6 {[%clk 0:00:12.6]} 27. Be4 {[%clk 0:01:10.8]} 27... Qxc3 {[%clk
0:00:12.5]} 28. Bxg6 {[%clk 0:01:04.4]} 28... Bc8 {[%clk 0:00:06.5]} 29. Bf5+
{[%clk 0:01:02.7]} 29... Kh8 {[%clk 0:00:06.1]} 30. Rac1 {[%clk 0:00:42.5]}
30... Bxf5 {[%clk 0:00:05.1]} 31. Qxf5 {[%clk 0:00:42.1]} 31... Qd2 {[%clk
0:00:04.7]} 32. Be5+ {[%clk 0:00:40.1]} 32... f6 {[%clk 0:00:02.8]} 33. Bxf6+
{[%clk 0:00:39.2]} 33... Kg8 {[%clk 0:00:02.6]} 34. Qg6# {[%clk 0:00:38.9]} 1-0

[Event "*** Titled Tuesday Blitz"]
[Site "Chess.com"]
[Date "2021.02.16"]
[Round "9"]
[White "Kaslask"]
[Black "noblerone"]
[Result "0-1"]
[WhiteElo "2255"]
[BlackElo "2398"]
[TimeControl "180+1"]
[EndTime "11:47:38 PST"]
[Termination "noblerone won by resignation"]

1. d4 {[%clk 0:03:00.9]} 1... d5 {[%clk 0:02:59.1]} 2. c4 {[%clk 0:03:00.4]}
2... c6 {[%clk 0:02:59.3]} 3. Nc3 {[%clk 0:03:00.2]} 3... Nf6 {[%clk 0:02:59.7]}
4. e3 {[%clk 0:02:58.7]} 4... a6 {[%clk 0:02:53.6]} 5. Qc2 {[%clk 0:02:56.7]}
5... b5 {[%clk 0:02:52.8]} 6. b3 {[%clk 0:02:53.3]} 6... Bg4 {[%clk 0:02:51.4]}
7. Bd3 {[%clk 0:02:46.3]} 7... e6 {[%clk 0:02:48.5]} 8. Nge2 {[%clk 0:02:43.5]}
8... Be7 {[%clk 0:02:32.4]} 9. O-O {[%clk 0:02:38.8]} 9... O-O {[%clk
0:02:31.2]} 10. h3 {[%clk 0:02:37.8]} 10... Bh5 {[%clk 0:02:31.1]} 11. Nf4
{[%clk 0:02:37.2]} 11... Bg6 {[%clk 0:02:28.3]} 12. Nxg6 {[%clk 0:02:36.7]}
12... hxg6 {[%clk 0:02:28.4]} 13. a4 {[%clk 0:02:35.8]} 13... bxc4 {[%clk
0:02:19.4]} 14. bxc4 {[%clk 0:02:35.1]} 14... Nbd7 {[%clk 0:02:19]} 15. e4
{[%clk 0:02:33.9]} 15... dxe4 {[%clk 0:02:08.5]} 16. Nxe4 {[%clk 0:02:33.1]}
16... Rc8 {[%clk 0:02:02.8]} 17. c5 {[%clk 0:02:31.9]} 17... Nxe4 {[%clk
0:01:55.1]} 18. Bxe4 {[%clk 0:02:31.5]} 18... Nf6 {[%clk 0:01:54.5]} 19. Be3
{[%clk 0:02:18.7]} 19... Nd5 {[%clk 0:01:47.1]} 20. Bxd5 {[%clk 0:02:06.7]}
20... Qxd5 {[%clk 0:01:43.7]} 21. Rab1 {[%clk 0:02:04]} 21... Rb8 {[%clk
0:01:28.7]} 22. Rb6 {[%clk 0:01:59]} 22... Bf6 {[%clk 0:01:25.6]} 23. Rfb1
{[%clk 0:01:55.2]} 23... Ra8 {[%clk 0:01:18.2]} 24. Qb3 {[%clk 0:01:42.1]} 24...
Qe4 {[%clk 0:01:10.2]} 25. Qc4 {[%clk 0:01:17.2]} 25... Rfd8 {[%clk 0:01:00.7]}
26. a5 {[%clk 0:01:10.3]} 26... Bxd4 {[%clk 0:00:40.3]} 27. Bxd4 {[%clk
0:01:08.6]} 27... Rxd4 {[%clk 0:00:41.2]} 28. Qf1 {[%clk 0:00:32.8]} 28... Rc4
{[%clk 0:00:20.4]} 29. Qd1 {[%clk 0:00:30.2]} 29... Rxc5 {[%clk 0:00:17.6]} 30.
Rb8+ {[%clk 0:00:29.1]} 30... Rxb8 {[%clk 0:00:17.7]} 31. Rxb8+ {[%clk
0:00:28.7]} 31... Kh7 {[%clk 0:00:18.6]} 32. Qd8 {[%clk 0:00:27.8]} 32... Rc1+
{[%clk 0:00:17.5]} 33. Kh2 {[%clk 0:00:27.1]} 33... Qf4+ {[%clk 0:00:17.9]} 0-1

[Event "*** Titled Tuesday Blitz"]
[Site "Chess.com"]
[Date "2021.02.16"]
[Round "9"]
[White "IceBelka"]
[Black "MasterMK73"]
[Result "1-0"]
[WhiteElo "2402"]
[BlackElo "2269"]
[TimeControl "180+1"]
[EndTime "11:47:39 PST"]
[Termination "IceBelka won by resignation"]

1. e4 {[%clk 0:02:57]} 1... c5 {[%clk 0:02:58.8]} 2. Nf3 {[%clk 0:02:56.4]} 2...
a6 {[%clk 0:02:57.9]} 3. c4 {[%clk 0:02:48.5]} 3... e6 {[%clk 0:02:56.9]} 4. Nc3
{[%clk 0:02:46.3]} 4... Qc7 {[%clk 0:02:54]} 5. d4 {[%clk 0:02:44.7]} 5... cxd4
{[%clk 0:02:53.4]} 6. Nxd4 {[%clk 0:02:45.2]} 6... Nf6 {[%clk 0:02:53.4]} 7. Bd3
{[%clk 0:02:37]} 7... b6 {[%clk 0:02:50.5]} 8. O-O {[%clk 0:02:31.1]} 8... Bb7
{[%clk 0:02:50.5]} 9. Qe2 {[%clk 0:02:28.1]} 9... d6 {[%clk 0:02:50.1]} 10. f4
{[%clk 0:02:19.7]} 10... Nbd7 {[%clk 0:02:47.8]} 11. Bd2 {[%clk 0:02:16.1]}
11... Be7 {[%clk 0:02:41.9]} 12. Rae1 {[%clk 0:02:12.2]} 12... Qc5 {[%clk
0:02:25.8]} 13. Be3 {[%clk 0:02:08]} 13... Qh5 {[%clk 0:02:24.4]} 14. Rf3 {[%clk
0:02:00.5]} 14... Nc5 {[%clk 0:02:06.6]} 15. Bf2 {[%clk 0:01:37.7]} 15... O-O-O
{[%clk 0:01:47.2]} 16. Bb1 {[%clk 0:01:33.8]} 16... g5 {[%clk 0:01:32.8]} 17. b4
{[%clk 0:01:24.2]} 17... g4 {[%clk 0:01:30.7]} 18. Rg3 {[%clk 0:01:15.8]} 18...
Ncd7 {[%clk 0:01:27.5]} 19. e5 {[%clk 0:01:10.9]} 19... dxe5 {[%clk 0:01:26.8]}
20. fxe5 {[%clk 0:01:11.8]} 20... Bxb4 {[%clk 0:01:01.5]} 21. exf6 {[%clk
0:01:08.8]} 21... Nxf6 {[%clk 0:01:02]} 22. a3 {[%clk 0:00:51.3]} 22... Bc5
{[%clk 0:00:53.1]} 23. Nb3 {[%clk 0:00:42]} 23... Qg5 {[%clk 0:00:22.9]} 24.
Nxc5 {[%clk 0:00:40.3]} 24... bxc5 {[%clk 0:00:22.4]} 25. Ne4 {[%clk 0:00:36.6]}
25... Nxe4 {[%clk 0:00:20.1]} 26. Bxe4 {[%clk 0:00:37.5]} 26... Rd2 {[%clk
0:00:20]} 27. Bxb7+ {[%clk 0:00:36.4]} 27... Kxb7 {[%clk 0:00:19]} 28. Qe4+
{[%clk 0:00:36]} 28... Kc7 {[%clk 0:00:17.3]} 29. Rb3 {[%clk 0:00:31.8]} 29...
Rb8 {[%clk 0:00:13.6]} 30. Bg3+ {[%clk 0:00:31.6]} 30... Kd7 {[%clk 0:00:11.2]}
31. Rxb8 {[%clk 0:00:30.6]} 1-0

[Event "*** Titled Tuesday Blitz"]
[Site "Chess.com"]
[Date "2021.02.16"]
[Round "9"]
[White "PSvidler"]
[Black "German_Bazeev"]
[Result "1-0"]
[WhiteElo "2916"]
[BlackElo "2739"]
[TimeControl "180+1"]
[EndTime "11:47:42 PST"]
[Termination "PSvidler won by resignation"]

1. e4 {[%clk 0:03:00.9]} 1... c6 {[%clk 0:02:58.9]} 2. d4 {[%clk 0:02:57.2]}
2... d5 {[%clk 0:02:59.3]} 3. e5 {[%clk 0:02:57.4]} 3... Na6 {[%clk 0:02:59.4]}
4. Nf3 {[%clk 0:02:55.1]} 4... Nc7 {[%clk 0:02:59.6]} 5. Bd3 {[%clk 0:02:54.8]}
5... g6 {[%clk 0:02:59.7]} 6. O-O {[%clk 0:02:54.1]} 6... Bg7 {[%clk 0:03:00.3]}
7. h3 {[%clk 0:02:52]} 7... Nh6 {[%clk 0:03:00.5]} 8. Re1 {[%clk 0:02:51.8]}
8... O-O {[%clk 0:03:00.6]} 9. c4 {[%clk 0:02:51.4]} 9... f6 {[%clk 0:02:59.7]}
10. exf6 {[%clk 0:02:49.1]} 10... exf6 {[%clk 0:03:00.6]} 11. Nc3 {[%clk
0:02:49.2]} 11... Nf7 {[%clk 0:03:00.4]} 12. Bf4 {[%clk 0:02:46.8]} 12... dxc4
{[%clk 0:02:29.9]} 13. Bxc4 {[%clk 0:02:46.5]} 13... b5 {[%clk 0:02:30.6]} 14.
Bb3 {[%clk 0:02:45.6]} 14... b4 {[%clk 0:02:29.3]} 15. Ne4 {[%clk 0:02:42.7]}
15... Nd5 {[%clk 0:02:29.6]} 16. Bd2 {[%clk 0:02:39.1]} 16... Bf5 {[%clk
0:02:08.6]} 17. Rc1 {[%clk 0:02:38.2]} 17... Re8 {[%clk 0:02:07.3]} 18. Ng3
{[%clk 0:02:36.7]} 18... Rxe1+ {[%clk 0:02:03.6]} 19. Qxe1 {[%clk 0:02:36.5]}
19... Bd7 {[%clk 0:01:42.1]} 20. Bxb4 {[%clk 0:02:36.1]} 20... Qb6 {[%clk
0:01:32.9]} 21. Bc5 {[%clk 0:02:34.1]} 21... Qa6 {[%clk 0:01:31.8]} 22. Qf1
{[%clk 0:02:16.8]} 22... Qxf1+ {[%clk 0:01:27.4]} 23. Kxf1 {[%clk 0:02:16.6]}
23... f5 {[%clk 0:01:23]} 24. Ne2 {[%clk 0:02:16.1]} 24... Bh6 {[%clk
0:01:21.7]} 25. Rc2 {[%clk 0:02:10.2]} 25... a5 {[%clk 0:01:15]} 26. Nc3 {[%clk
0:02:07.9]} 26... Be6 {[%clk 0:01:04.9]} 27. Nxd5 {[%clk 0:01:56.5]} 27... Bxd5
{[%clk 0:01:04]} 28. Bxd5 {[%clk 0:01:50.6]} 28... cxd5 {[%clk 0:01:04.9]} 29.
b3 {[%clk 0:01:50.5]} 29... Bg7 {[%clk 0:01:01.3]} 30. Re2 {[%clk 0:01:49.5]}
30... Bf8 {[%clk 0:00:56.3]} 31. Bxf8 {[%clk 0:01:33.5]} 31... Kxf8 {[%clk
0:00:57.2]} 32. Rc2 {[%clk 0:01:33.8]} 32... a4 {[%clk 0:00:57]} 33. b4 {[%clk
0:01:33]} 33... a3 {[%clk 0:00:55.3]} 34. Ne1 {[%clk 0:01:26.7]} 34... Nd6
{[%clk 0:00:54.1]} 35. Nd3 {[%clk 0:01:22.2]} 35... Nc4 {[%clk 0:00:51.5]} 36.
Nf4 {[%clk 0:01:22]} 36... Nb2 {[%clk 0:00:33.2]} 37. Nxd5 {[%clk 0:01:17.1]}
37... Rd8 {[%clk 0:00:33.8]} 38. Nc7 {[%clk 0:01:14.8]} 38... Ke7 {[%clk
0:00:30.2]} 39. d5 {[%clk 0:01:14.4]} 39... Kd6 {[%clk 0:00:28.7]} 40. Rc6+
{[%clk 0:01:13.3]} 40... Ke5 {[%clk 0:00:28]} 41. b5 {[%clk 0:01:12.5]} 41...
Nd3 {[%clk 0:00:20.9]} 42. Rc4 {[%clk 0:01:03.4]} 42... Rb8 {[%clk 0:00:16.4]}
43. Rc3 {[%clk 0:01:00.6]} 43... Nf4 {[%clk 0:00:14.6]} 44. Rxa3 {[%clk
0:00:58.4]} 44... Kd6 {[%clk 0:00:14.4]} 45. Rc3 {[%clk 0:00:57.5]} 1-0

[Event "*** Titled Tuesday Blitz"]
[Site "Chess.com"]
[Date "2021.02.16"]
[Round "9"]
[White "ehrenfeld"]
[Black "VladimirBugayev"]
[Result "1-0"]
[WhiteElo "2474"]
[BlackElo "2300"]
[TimeControl "180+1"]
[EndTime "11:47:42 PST"]
[Termination "ehrenfeld won by resignation"]

1. e4 {[%clk 0:03:00.9]} 1... c6 {[%clk 0:02:55.6]} 2. d4 {[%clk 0:03:00.7]}
2... d5 {[%clk 0:02:54.9]} 3. exd5 {[%clk 0:02:59.7]} 3... cxd5 {[%clk
0:02:54.8]} 4. Bd3 {[%clk 0:02:59.4]} 4... Nc6 {[%clk 0:02:54.6]} 5. c3 {[%clk
0:02:59.5]} 5... Nf6 {[%clk 0:02:55]} 6. Bf4 {[%clk 0:02:59.1]} 6... Bg4 {[%clk
0:02:54.9]} 7. Qb3 {[%clk 0:02:58.8]} 7... Qd7 {[%clk 0:02:55.1]} 8. Nd2 {[%clk
0:02:58.4]} 8... e6 {[%clk 0:02:55.8]} 9. Ngf3 {[%clk 0:02:58.4]} 9... Bd6
{[%clk 0:02:55.3]} 10. Ne5 {[%clk 0:02:58]} 10... Bxe5 {[%clk 0:02:46.8]} 11.
dxe5 {[%clk 0:02:53.3]} 11... Ng8 {[%clk 0:02:46.1]} 12. O-O {[%clk 0:02:49.4]}
12... Nge7 {[%clk 0:02:45.8]} 13. Rfe1 {[%clk 0:02:35.2]} 13... O-O {[%clk
0:02:39.9]} 14. Bf1 {[%clk 0:02:30.3]} 14... a6 {[%clk 0:02:14.3]} 15. a4 {[%clk
0:02:26.5]} 15... Rfc8 {[%clk 0:01:49.6]} 16. h3 {[%clk 0:02:25.9]} 16... Bh5
{[%clk 0:01:47.5]} 17. a5 {[%clk 0:02:23.8]} 17... Qc7 {[%clk 0:01:38.8]} 18.
Qa4 {[%clk 0:02:22.3]} 18... Ng6 {[%clk 0:01:26.5]} 19. Bg3 {[%clk 0:02:18.3]}
19... Ngxe5 {[%clk 0:01:16.7]} 20. Kh1 {[%clk 0:02:06.5]} 20... f6 {[%clk
0:01:09.2]} 21. f4 {[%clk 0:02:01.3]} 21... Ng6 {[%clk 0:00:53.1]} 22. Rxe6
{[%clk 0:01:57.8]} 22... Re8 {[%clk 0:00:53.1]} 23. Rae1 {[%clk 0:01:56.8]}
23... Rxe6 {[%clk 0:00:51.9]} 24. Rxe6 {[%clk 0:01:56.5]} 24... Qxa5 {[%clk
0:00:51.7]} 25. Qxa5 {[%clk 0:01:56]} 25... Nxa5 {[%clk 0:00:50.2]} 26. f5
{[%clk 0:01:56]} 26... Nf8 {[%clk 0:00:49.1]} 27. Re7 {[%clk 0:01:53.4]} 27...
Re8 {[%clk 0:00:47.5]} 28. Rc7 {[%clk 0:01:49.3]} 28... Re3 {[%clk 0:00:29.9]}
29. Bd6 {[%clk 0:01:41.7]} 29... Re8 {[%clk 0:00:19.9]} 30. b4 {[%clk 0:01:38]}
30... Nc6 {[%clk 0:00:17.8]} 31. Rxb7 {[%clk 0:01:37.7]} 31... d4 {[%clk
0:00:17.9]} 32. Bc4+ {[%clk 0:01:31.8]} 32... Kh8 {[%clk 0:00:16.3]} 33. cxd4
{[%clk 0:01:28.8]} 33... Nxd4 {[%clk 0:00:14.9]} 34. g4 {[%clk 0:01:24.5]} 34...
Nxf5 {[%clk 0:00:14.5]} 35. gxf5 {[%clk 0:01:21.9]} 35... Rd8 {[%clk 0:00:14.4]}
36. Rb8 {[%clk 0:01:20.3]} 36... Rxb8 {[%clk 0:00:11.8]} 37. Bxb8 {[%clk
0:01:20.3]} 37... Nd7 {[%clk 0:00:12]} 38. Bc7 {[%clk 0:01:18.1]} 38... Ne5
{[%clk 0:00:08.4]} 39. Bxe5 {[%clk 0:01:16.3]} 39... fxe5 {[%clk 0:00:08]} 40.
Bxa6 {[%clk 0:01:16.2]} 40... e4 {[%clk 0:00:07.9]} 41. Kg1 {[%clk 0:01:09.4]}
41... e3 {[%clk 0:00:07.8]} 42. Nb3 {[%clk 0:01:07]} 42... Bf7 {[%clk
0:00:06.6]} 43. Nd4 {[%clk 0:01:05.9]} 43... Bd5 {[%clk 0:00:05.6]} 44. Kf1
{[%clk 0:01:04.6]} 44... Kg8 {[%clk 0:00:05]} 45. Ke2 {[%clk 0:01:04.6]} 1-0

[Event "*** Titled Tuesday Blitz"]
[Site "Chess.com"]
[Date "2021.02.16"]
[Round "9"]
[White "Pelopidass"]
[Black "Harry_Rakkel"]
[Result "1/2-1/2"]
[WhiteElo "2601"]
[BlackElo "2686"]
[TimeControl "180+1"]
[EndTime "11:47:43 PST"]
[Termination "Game drawn by repetition"]

1. e4 {[%clk 0:03:00.9]} 1... c5 {[%clk 0:02:59.4]} 2. b4 {[%clk 0:03:01.3]}
2... cxb4 {[%clk 0:02:58]} 3. a3 {[%clk 0:03:01.8]} 3... e6 {[%clk 0:02:56.3]}
4. axb4 {[%clk 0:02:59.4]} 4... Bxb4 {[%clk 0:02:54.7]} 5. c3 {[%clk 0:02:59.8]}
5... Be7 {[%clk 0:02:53.6]} 6. d4 {[%clk 0:03:00.3]} 6... Nf6 {[%clk 0:02:47.8]}
7. Bd3 {[%clk 0:02:44.1]} 7... d5 {[%clk 0:02:45.1]} 8. e5 {[%clk 0:02:44.2]}
8... Nfd7 {[%clk 0:02:44.1]} 9. Qg4 {[%clk 0:02:41.9]} 9... g6 {[%clk
0:02:41.5]} 10. Ne2 {[%clk 0:02:27.6]} 10... Nc6 {[%clk 0:02:38.3]} 11. Bh6
{[%clk 0:02:23.4]} 11... Nb6 {[%clk 0:02:26.9]} 12. Nd2 {[%clk 0:02:22]} 12...
Bd7 {[%clk 0:02:26.3]} 13. O-O {[%clk 0:02:13.6]} 13... Qc7 {[%clk 0:02:20.6]}
14. Rfc1 {[%clk 0:02:08.2]} 14... a6 {[%clk 0:01:59.8]} 15. Rab1 {[%clk
0:01:51.5]} 15... Na5 {[%clk 0:01:56.1]} 16. h4 {[%clk 0:01:41.9]} 16... Nac4
{[%clk 0:01:46.5]} 17. Nf3 {[%clk 0:01:08.4]} 17... O-O-O {[%clk 0:01:16.3]} 18.
Qf4 {[%clk 0:01:06.3]} 18... Ba3 {[%clk 0:01:09.4]} 19. Re1 {[%clk 0:00:57.4]}
19... Bb5 {[%clk 0:01:08.6]} 20. Ng5 {[%clk 0:00:44.6]} 20... Rd7 {[%clk
0:01:06.3]} 21. Bg7 {[%clk 0:00:44.8]} 21... Rg8 {[%clk 0:01:05.2]} 22. Bf6
{[%clk 0:00:45.1]} 22... h5 {[%clk 0:01:01.2]} 23. Rb3 {[%clk 0:00:34.5]} 23...
Ba4 {[%clk 0:00:54.1]} 24. Rbb1 {[%clk 0:00:26.4]} 24... Bb2 {[%clk 0:00:50.6]}
25. Nf3 {[%clk 0:00:17.2]} 25... Kb8 {[%clk 0:00:42.3]} 26. Nd2 {[%clk
0:00:17.2]} 26... Ba3 {[%clk 0:00:38.3]} 27. Ra1 {[%clk 0:00:13.3]} 27... Bb2
{[%clk 0:00:29.9]} 28. Rab1 {[%clk 0:00:10.5]} 28... Ba3 {[%clk 0:00:25]} 29.
Ra1 {[%clk 0:00:10.2]} 29... Bb2 {[%clk 0:00:19]} 30. Rab1 {[%clk 0:00:10.3]}
1/2-1/2

[Event "*** Titled Tuesday Blitz"]
[Site "Chess.com"]
[Date "2021.02.16"]
[Round "9"]
[White "ErikBlomqvist"]
[Black "Nils_03"]
[Result "1-0"]
[WhiteElo "2524"]
[BlackElo "2353"]
[TimeControl "180+1"]
[EndTime "11:47:44 PST"]
[Termination "ErikBlomqvist won on time"]

1. e4 {[%clk 0:03:00.9]} 1... c6 {[%clk 0:02:59.4]} 2. d4 {[%clk 0:03:00.4]}
2... d5 {[%clk 0:03:00]} 3. exd5 {[%clk 0:03:01.3]} 3... cxd5 {[%clk 0:03:00.1]}
4. Bd3 {[%clk 0:03:01.9]} 4... Nc6 {[%clk 0:02:58.2]} 5. c3 {[%clk 0:03:01.4]}
5... Nf6 {[%clk 0:02:57.3]} 6. h3 {[%clk 0:03:01.9]} 6... g6 {[%clk 0:02:54.8]}
7. Nf3 {[%clk 0:03:01.1]} 7... Bf5 {[%clk 0:02:54.9]} 8. Be2 {[%clk 0:02:51.8]}
8... Bg7 {[%clk 0:02:53.3]} 9. O-O {[%clk 0:02:51.5]} 9... O-O {[%clk
0:02:53.2]} 10. Bf4 {[%clk 0:02:49]} 10... Qb6 {[%clk 0:02:48.4]} 11. Qb3 {[%clk
0:02:44.7]} 11... Qxb3 {[%clk 0:02:37]} 12. axb3 {[%clk 0:02:45.6]} 12... a5
{[%clk 0:02:37.3]} 13. Na3 {[%clk 0:02:38.9]} 13... Ne4 {[%clk 0:02:33]} 14. Nb5
{[%clk 0:02:34]} 14... Rfd8 {[%clk 0:02:22.1]} 15. Rfe1 {[%clk 0:02:21.7]} 15...
h6 {[%clk 0:01:57.6]} 16. g4 {[%clk 0:02:20.1]} 16... Bd7 {[%clk 0:01:43.3]} 17.
Nc7 {[%clk 0:02:16.6]} 17... Rac8 {[%clk 0:01:24.7]} 18. Nxd5 {[%clk 0:02:16.5]}
18... Be6 {[%clk 0:01:17]} 19. Nb6 {[%clk 0:02:14.3]} 19... Bxb3 {[%clk
0:01:13.1]} 20. Bd1 {[%clk 0:02:03.5]} 20... Bxd1 {[%clk 0:01:01.9]} 21. Raxd1
{[%clk 0:02:04.4]} 21... e5 {[%clk 0:00:58.3]} 22. Nxc8 {[%clk 0:01:54.2]} 22...
exf4 {[%clk 0:00:52.1]} 23. Rxe4 {[%clk 0:01:51.1]} 23... Rxc8 {[%clk
0:00:51.3]} 24. Rxf4 {[%clk 0:01:50.2]} 24... a4 {[%clk 0:00:46.5]} 25. Re4
{[%clk 0:01:48.8]} 25... Na5 {[%clk 0:00:45.9]} 26. Rde1 {[%clk 0:01:48.3]}
26... Kf8 {[%clk 0:00:44.3]} 27. Ne5 {[%clk 0:01:47]} 27... Bxe5 {[%clk
0:00:41.7]} 28. dxe5 {[%clk 0:01:46.4]} 28... a3 {[%clk 0:00:40.1]} 29. bxa3
{[%clk 0:01:45.8]} 29... Rxc3 {[%clk 0:00:39.4]} 30. e6 {[%clk 0:01:45.5]} 30...
Rxa3 {[%clk 0:00:32.3]} 31. exf7 {[%clk 0:01:39.1]} 31... Nc6 {[%clk 0:00:25.9]}
32. Rb1 {[%clk 0:01:30.3]} 32... Kxf7 {[%clk 0:00:19.2]} 33. Rxb7+ {[%clk
0:01:29.5]} 33... Kf6 {[%clk 0:00:20.1]} 34. Rb6 {[%clk 0:01:27.1]} 34... Rc3
{[%clk 0:00:20.2]} 35. f4 {[%clk 0:01:12.2]} 35... Kf7 {[%clk 0:00:18.3]} 36.
Kf2 {[%clk 0:01:10.5]} 36... Nd8 {[%clk 0:00:12.6]} 37. Re3 {[%clk 0:01:07.6]}
37... Rc2+ {[%clk 0:00:12.6]} 38. Kg3 {[%clk 0:01:06.8]} 38... Rc1 {[%clk
0:00:11.7]} 39. Ra3 {[%clk 0:01:00.6]} 39... Rg1+ {[%clk 0:00:08.6]} 40. Kf2
{[%clk 0:01:00.2]} 40... Rd1 {[%clk 0:00:09.5]} 41. Ra7+ {[%clk 0:00:59.6]}
41... Kf8 {[%clk 0:00:05.9]} 42. Rxg6 {[%clk 0:00:57.6]} 42... Nf7 {[%clk
0:00:02.5]} 43. Rf6 {[%clk 0:00:57.2]} 1-0